Cogmind - Beta 16.1 @@@ ROGUE MODE // 2026.02.12 @ 12:56:30 Player: arsenico Result: Destroyed by OX-Q3R(R) with Subdweller Beam Cannon Performance ------------- Evolutions (0) 0 Regions Visited (2) 400 Robots Destroyed (21) 105 Value Destroyed (445) 445 Prototype IDs (0) 0 Alien Tech Used (0) 0 Bonus (0) 0 TOTAL SCORE: 950 Bonus ------- None Cogmind --------- Core Integrity 0/250 Matter 300/300 Energy 55/125 System Corruption 0% Temperature Cool (6) Movement Treading (240) Ox1 Location -10/Subcaves Parts ------- > --- POWER (1) -------- Light Ion Engine > --- PROPULSION (2) --- Light Treads Light Treads > --- UTILITY (2) ------ High-capacity Storage Unit Shield Generator > --- WEAPON (2) ------- Light Assault Rifle Maul > --- INVENTORY (20) --- Improved Heat Sink Medium Storage Unit Medium Armor Plating Hacking Suite Small Laser Small Laser Datajack Peak State ------------ > --- POWER ------------ Light Ion Engine > --- PROPULSION ------- Light Treads Light Treads > --- UTILITY ---------- High-capacity Storage Unit Shield Generator > --- WEAPON ----------- Small Laser Maul > --- INVENTORY -------- Light Treads Light Treads Improved Heat Sink Medium Storage Unit Medium Armor Plating Hacking Suite Small Laser Light Assault Rifle Datajack [Rating: 10] Favorites ----------- Power Ion Engine Engine Ion Engine Propulsion Light Treads Treads Light Treads Utility Seismic Detector Device Seismic Detector Storage High-capacity Storage Unit Protection Medium Armor Plating Weapon Small Laser Energy Gun Small Laser Ballistic Gun Light Assault Rifle Impact Weapon Maul Slashing Weapon Mining Claw Build | -11 -10 -10 ------- Run | Yrd Mat Sub Slots Evolved . | . . . Power . | . . . Propulsion . | . . . Utility . | . . . Weapon . | . . . Parts Attached 18 | 6 4 8 Power 2 | 1 . 1 Engine 2 | 1 . 1 Core . | . . . Reactor . | . . . Propulsion 4 | 2 . 2 Treads 4 | 2 . 2 Leg . | . . . Wheel . | . . . Hover . | . . . Flight . | . . . Utility 6 | 1 3 2 Device 2 | . 1 1 Storage 3 | 1 2 . Processor . | . . . Hackware . | . . . Protection 1 | . . 1 Artifact . | . . . Weapon 6 | 2 1 3 Energy Gun 3 | 2 . 1 Energy Cannon . | . . . Ballistic Gun 1 | . . 1 Ballistic Cannon . | . . . Launcher . | . . . Special Weapon . | . . . Impact Weapon 1 | . . 1 Slashing Weapon 1 | . 1 . Piercing Weapon . | . . . Special Melee Weapon . | . . . Unidentified Prototypes . | . . . Parts Lost 5 | . . 5 Power 1 | . . 1 Propulsion 2 | . . 2 Utility 1 | . . 1 Weapon 1 | . . 1 Highest Loss Streak 3 | . . 3 To Critical Strikes . | . . . Average Backups 8 | 2 8 9 Power . | . 1 . Propulsion . | . . 1 Utility 3 | . 3 4 Weapon 2 | . 2 2 Tool/Special . | . . . Unused Backups 5 | . 2 3 Power . | . . . Propulsion 1 | . 1 . Utility 3 | . 1 2 Weapon . | . . . Tool/Special 1 | . . 1 Average Slot Usage (%) 97 | . 99 96 Engine 13 | . 14 12 Treads 28 | . 28 28 Device 11 | . 13 9 Storage 14 | . 14 14 Energy Gun 21 | . 27 15 Ballistic Gun 2 | . . 5 Impact Weapon 3 | . . 6 Peak Build Rating 10 | 6 8 10 Average Rating 8 | 4 7 8 On Entrance 4 | . 6 8 Avg Prop Armor Cover (%) . | . . . Naked Turns . | . . . Heaviest Build 52 | 12 48 52 Greatest Support 40 | 40 40 40 Greatest Overweight (x) 2 | . 1 2 Average Overweight (x) . | . . 1 Largest Inventory Capacity 20 | 8 20 20 Average Capacity 15 | 7 11 20 Most Carried 12 | 5 12 12 Average Carried 8 | 2 8 9 Final Capacity 20 | 8 20 20 Final Carried 12 | 4 12 7 Class Distribution -------------------- 100% | Mutant Dominant Class ---------------- Mutant | -10/Materials Mutant | -10/Subcaves Resources | -11 -10 -10 ----------- Run | Yrd Mat Sub Matter Collected 371 | 260 50 61 Remotely . | . . . Salvage Created 744 | 116 450 178 Parts 45 | 13 25 7 Haulers Intercepted 1 | . 1 . Recyclers Shooed 5 | 2 3 . Parts Field Recycled . | . . . Retrieved Matter . | . . . Parts Self-Destructed 10 | . . 10 Prevented . | . . . Parts Restored . | . . . Kills | -11 -10 -10 ------- Run | Yrd Mat Sub Combat Hostiles Destroyed 12 | . 8 4 Melee 2 | . . 2 Guns 10 | . 8 2 Classes Destroyed 8 | 2 5 1 Worker 1 | . 1 . Tunneler 4 | 3 1 . Hauler 1 | . 1 . Recycler 2 | 1 1 . Operator 1 | . 1 . Swarmer 3 | . 3 . Grunt 5 | . 5 . Subdweller 4 | . . 4 Best Kill Streak 4 | 4 2 2 Combat Bots Only 2 | . 2 2 Max Kills in Single Turn 2 | 1 2 1 Gunslinging . | . . . Exploded . | . . . Melee 1 | . . 1 Uniques/NPCs Destroyed . | . . . Combat | -11 -10 -10 -------- Run | Yrd Mat Sub Hostile Shots Fired 94 | . 45 49 Missed 25 | . 11 14 Hits 69 | . 34 35 Projectile 69 | . 34 35 Critical Strikes 2 | . 1 1 Damage Taken 1059 | . 377 682 Core 268 | . 111 157 Absorbed by Shields 101 | . . 101 Core Remaining (%) 100 | 100 . . Volleys Fired 73 | 8 50 15 Largest 2 | 2 2 2 Hottest 80 | 80 80 80 Shots Fired 143 | 16 100 27 Gun 143 | 16 100 27 Cannon . | . . . Launcher . | . . . Special . | . . . Kinetic 1 | . . 1 Thermal 142 | 16 100 26 Explosive . | . . . Electromagnetic . | . . . Robot Hit Streak 26 | 9 12 26 Robot Miss Streak 4 | 1 4 1 Penetration Max . | . . . Secondary Targets . | . . . Shots Hit Robots 100 | 12 59 29 Core Hits 36 | 5 23 8 Critical Kills . | . . . Critical Parts Destroyed . | . . . Critical Strikes 1 | . . 1 Smash 1 | . . 1 Melee Attacks 12 | . 2 10 Impact 10 | . . 10 Slashing 2 | . 2 . Piercing . | . . . Sneak Attacks . | . . . Combat Hostiles . | . . . Follow-up Attacks . | . . . Damage Inflicted 1270 | 133 688 449 Guns 1087 | 133 684 270 Cannons . | . . . Explosions . | . . . Melee 179 | . . 179 Ramming 4 | . 4 . Kinetic 8 | . . 8 Thermal 1079 | 133 684 262 Explosive . | . . . Electromagnetic . | . . . Impact 179 | . . 179 Slashing . | . . . Piercing . | . . . Highest Corruption . | . . . Average Corruption . | . . . Corruption Purged . | . . . Corruption Blocked . | . . . Overload Shots . | . . . Overflow Damage . | . . . Projectiles . | . . . Explosions . | . . . Melee . | . . . Knockbacks 1 | . . 1 Impact 1 | . . 1 Kinetic . | . . . Secondary . | . . . Self-Inflicted Damage . | . . . Shots . | . . . Rammed 1 | . 1 . Targets Rammed 1 | . 1 . Kicked . | . . . Crushed . | . . . Highest Temperature 231 | 36 231 . Average Temperature 64 | 16 70 . Received Heat Transfer 297 | . 147 150 Siege Activations . | . . . Martial Activations . | . . . Shielding Activations . | . . . Robots Disrupted . | . . . Combat Hostiles . | . . . Robots Corrupted . | . . . Combat Hostiles . | . . . Parts Fried . | . . . Impact Corruptions . | . . . Robots Melted . | . . . Combat Hostiles . | . . . Parts Melted 4 | . 3 1 Heat Transferred 2450 | 300 1550 600 Parts Sabotaged . | . . . Parts Stolen . | . . . Parts Stripped . | . . . Power Chain Reactions . | . . . Alert | -11 -10 -10 ------- Run | Yrd Mat Sub Maximum Alert Level . | . . . Low Security (%) 100 | 100 100 . Level 1 . | . . . Level 2 . | . . . Level 3 . | . . . Level 4 . | . . . Level 5 . | . . . High Security . | . . . Max Security . | . . . Peak Influence 54 | 10 54 . Initial . | . . . Average 9 | 1 10 . Influence Increases 263 | 20 243 . Destroy 0b10 Robot/C 160 | . 160 . Destroy 0b10 Robot/NC 45 | 20 25 . Destroy Leader 42 | . 42 . Destroy Structure 1 | . 1 . Lose Combat Pursuer 15 | . 15 . Influence Decreases 263 | 20 199 44 Entered New Map 22 | . . 22 Time Decay 241 | 20 199 22 Squads Dispatched 1 | . 1 . Investigation . | . . . Extermination . | . . . Reinforcement 1 | . 1 . Assault . | . . . Garrison . | . . . Intercept . | . . . Searches Triggered . | . . . Construction Impeded . | . . . Haulers Reinforced . | . . . Active Scanning Responses . | . . . Cargo Convoy Interrupts . | . . . Stealth | -11 -10 -10 --------- Run | Yrd Mat Sub Distress Signals 3 | . 3 . Communications Jammed . | . . . Distress Signals . | . . . Times Spotted 30 | . 25 5 Peak Tracking Total 5 | . 5 2 Tactical Retreats 1 | . 1 . Traps | -11 -10 -10 ------- Run | Yrd Mat Sub Traps Triggered . | . . . Indirectly . | . . . Trap Hack Attempts . | . . . Triggered . | . . . Disarmed . | . . . Reprogrammed . | . . . Reused . | . . . Traps Extracted . | . . . Installed . | . . . Triggered . | . . . Machines | -11 -10 -10 ---------- Run | Yrd Mat Sub Machines Disabled . | . . . Max in Single Turn . | . . . Machines Repaired . | . . . Machines Dismantled . | . . . Machines Sabotaged . | . . . Overloaded Fab Kills . | . . . Hacking | -11 -10 -10 --------- Run | Yrd Mat Sub Machines Accessed 3 | . 3 . Terminals 2 | . 2 . Fabricators . | . . . Repair Stations . | . . . Recycling Units 1 | . 1 . Scanalyzers . | . . . Garrison Access . | . . . Total Hacks 4 | . 4 . Successful 2 | . 2 . Failed 2 | . 2 . Catastrophic . | . . . Database Lockouts . | . . . Manual 2 | . 2 . Terminals 2 | . 2 . Fabricators . | . . . Repair Stations . | . . . Recycling Units 2 | . 2 . Scanalyzers . | . . . Garrison Access . | . . . Terminal Hacks . | . . . Fabricator Hacks . | . . . Repair Station Hacks . | . . . Recycling Unit Hacks 2 | . 2 . Report Inventory 1 | . 1 . Retrieve Components 1 | . 1 . Scanalyzer . | . . . Garrison Access Hacks . | . . . Unauthorized Hacks . | . . . Terminals . | . . . Fabricators . | . . . Repair Stations . | . . . Recycling Units . | . . . Scanalyzers . | . . . Garrison Access . | . . . Data Cores Recovered . | . . . Used . | . . . Hacking Detections . | . . . Full Trace Events . | . . . Feedback Events . | . . . Feedback Blocked . | . . . Robot Schematics Acquired . | . . . Robots Built . | . . . Authchips . | . . . Time . | . . . Total Robot Build Rating . | . . . Part Schematics Acquired . | . . . Parts Built . | . . . Authchips . | . . . Time . | . . . Total Part Build Rating . | . . . Part Studies Acquired . | . . . Parts Repaired . | . . . Time . | . . . Parts Recycled . | . . . Recycled Matter . | . . . Retrieved Matter . | . . . Retrieved Components 9 | . 9 . Parts Scanalyzed . | . . . Part Schematics Acquired . | . . . Parts Damaged . | . . . Bothacking | -11 -10 -10 ------------ Run | Yrd Mat Sub Used RIF Installer . | . . . Robots Hacked . | . . . Non-combat . | . . . Combat . | . . . Robot Hacks Applied . | . . . Relay Couplers Released . | . . . Fabnet Peak Effective % . | . . . Robots Rewired . | . . . Allies Hacked . | . . . Hacks Repelled . | . . . Allies | -11 -10 -10 -------- Run | Yrd Mat Sub Total Allies . | . . . Largest Group . | . . . Highest-Rated Group . | . . . Highest-Rated Ally . | . . . Total Orders . | . . . Ally Attacks . | . . . Total Damage . | . . . Kills . | . . . Allies Corrupted . | . . . Allies Melted . | . . . Intel | -11 -10 -10 ------- Run | Yrd Mat Sub Active Infowar (turns) 1320 | . 1042 278 Seismic 1320 | . 1042 278 Robot Analysis Total . | . . . Derelict Logs Recovered . | . . . Drone Launches . | . . . Drone Recoveries . | . . . Exploration | -11 -10 -10 ------------- Run | Yrd Mat Sub Turns Passed 2332 | 145 1096 1091 Spaces Moved 962 | 80 464 418 Core 20 | 20 . . Treads 942 | 60 464 418 Legs . | . . . Wheels . | . . . Hover . | . . . Flight . | . . . Fastest Speed 50 | 50 160 240 Average Speed 197 | 132 171 240 Slowest Speed 320 | 160 240 320 Overloaded Moves . | . . . Propulsion Burnouts . | . . . Robots Hopped . | . . . Potential Cave-ins . | . . . Cave-ins Triggered . | . . . Exploration Rate (%) 29 | 4 57 27 Regions Visited 2 Branch Regions 1 Pre-discovered Areas . | . . . Known Exits Taken . | . . . Unknown Exits Taken 2 | 1 1 . Scrap Searched . | . . . Spaces Dug 1 | . 1 . Terrain Destroyed 1 | . 1 . Melee 1 | . 1 . Projectile . | . . . AOE . | . . . Terrain Rammed . | . . . Walls Destroyed . | . . . Machines Disabled . | . . . Actions | -11 -10 -10 --------- Run | Yrd Mat Sub Total 1223 | 103 662 458 Wait 128 | . 122 6 Move 960 | 79 463 418 Hop . | . . . Pick Up 24 | 10 14 . Fast Attach . | . . . Attach 13 | 6 1 6 Detach 1 | . . 1 Swap 6 | . 4 2 Drop 5 | . 5 . Fire 73 | 8 50 15 Melee 12 | . 2 10 Ram . | . . . Kick . | . . . Crush 1 | . 1 . Escape Stasis . | . . . Rewire . | . . . Trap . | . . . Miscellaneous . | . . . Route ------- -11/Scrapyard -10/Materials (discovered 4 exits: [*Mat x2] / [*Min] / [*Sub]) -10/Subcaves History --------- Turn | Location | Event 2 | -11/Scrapyard | Met Revision 17 9 | -11/Scrapyard | Discovered new exit (range 15) 146 | -11/Scrapyard | Entered Materials 322 | -10/Materials | Build established: Mutant 664 | -10/Materials | Discovered new exit (range 11) 812 | -10/Materials | Discovered new exit (range 15) 953 | -10/Materials | Discovered new exit (range 9) 1181 | -10/Materials | Discovered new exit (range 9) 1242 | -10/Materials | Entered Subcaves 1562 | -10/Subcaves | Core integrity fell below 50% 1582 | -10/Subcaves | Lost 3 parts (1p1u1w) 1888 | -10/Subcaves | Core integrity fell below 20% 2333 | -10/Subcaves | Destroyed by OX-Q3R(R) with Subdweller Beam Cannon Last Messages --------------- Subatomizers dissect the Sub. Optics. Sub. Monowheel melted. 7E-D89(R) destroyed. Acquired 10 matter. Subatomizers dissect the Sub. Optics. Acquired 10 matter. Subatomizers dissect the Sub. Optics. Lgt. Treads destroyed. WD-8RK(R) destroyed. NQ-MOG(R) suffers critical hit (Smash). NQ-MOG(R) knocked back. NQ-MOG(R) affixes Scrap Shield Fragment to Scrap Shield. Acquired 41 matter. NQ-MOG(R) destroyed. Subatomizers dissect the Disposable Heat Sink. W6-NMN(u) builds Twisted Machinery. OX-Q3R(R): "MADSUB!" W6-NMN(u) builds Twisted Machinery. Map ----- +----------------------------------------------------+ | ???????????????????????? ????????????????????? | | ???????????????????????? ????????????????????? | | ?????????????????????? ??? ????????????????? | | ????????????????????? ??? ???????????????? | | ?????????????????? ?? ### ??????????????? | | ?????????????????? ? ???????????????? | | ??????????????????# ????????????????? | | ??????????????????#"""""" #????????????????? | | ??????????????????# ^ #????????????????? | | ??????????????????? ""#????????????????? | | ????????????????????? #"""#?????????????????? | | ??????????????????????#"" ##?????????????????? | | ???????????????????????# ###???????????????? | | ???????????????????????# # ##??????????????? | | ???????????????????????# #??????????????? | | ????????????????????####" #??????????????? | | ???????????????????""""""" ##??????????????? | | ???????????????????"""""" ##???????????????? | | ????????????????????#### ##????????????????? | | ???????????????????????#" #?????????????????? | | ???????????????????????##" ##????????????????? | | ????????????????????????# R"#????????????????? | | ????????????????????????## #????????????????? | | ????????????????????????## ##????????????????? | | ????????????????????????# #?????????????????? | | ????????????????????????#@ #?????????????????? | | ????????????????????????# #?????????????????? | | ????????????????????????## #?????????????????? | | ????????????????????????# ##????????????????? | | ????????????????????????# #????????????????? | | ????????????????????????## ##????????????????? | | ????????????????????????## ##????????????????? | | ????????????????????????# #????????????????? | | ????????????????????????# ##????????????????? | | ????????????????????????## ##????????????????? | | ????????????????????????# #????????????????? | | ????????????????????????# ##???????????????? | | ???????????????????????## ##??????????????? | | ???????????????????????# ##?????????????? | | ???????????????????????# #?????????????? | | ???????????????????????# #?????????????? | | ???????????????????????##### ##?????????????? | | ???????????????????????#### #?????????????? | | ??????????###??????##### # #?????????????? | | ?????????## ##????## ##?????????????? | | ?????????# #?#### #??????????????? | | ?????????# #?# ## ### #?????????????? | | ??????????# ### #### ##??##?????????????? | | ??????????## ##?######???????????????? | | ???????????## ##?## #???????????????? | +----------------------------------------------------+ Best States ------------- Heat Dissipation 25 Energy Generation 10 Energy Capacity 250 Matter Stores 300 Matter Capacity 300 Sight Range 16 Terrain Scan Density 10 Armor Coverage 225 Evasion (%) 50 Recoil Reduction 2 Item Schematics ----------------- None Robot Schematics ------------------ None Fabricated ------------ Nothing Repaired ---------- Nothing Studied --------- None Alien Tech Used ----------------- None Achievements -------------- You Again Challenges ------------ None Game ------ Seed SuperchargedImprovedRipper Manual? 0 Play Time 00:12:52 Cumulative 15.8 hours Start 2026.02.11 @ 19:17:19 End 2026.02.12 @ 12:56:30 Sessions 3 Manual Loads 0 Difficulty Rogue Special Mode None Game No. 27 Rogue 27 Adventurer 0 Explorer 0 Win Type - Total 0 Types 0/0/0/0/0/0/0/0/0/0 Lore% 4 Gallery% 19 Achievement% 15 Wizard Run 0 Options --------- Layout 1 ASCII 0 Keyboard 1 Movement Numpad Keybinds 0 Fullscreen 1 Font 24/Smallcaps Map View 50x35 Zoom Use 0% Tactical HUD 0 Map Filters NONE Filters NONE Steam 1 RUN: 17b712ae-0a95-4763-94c5-d12dc6894505